bitfinex-derivatives/quotes_BTCF0:USTF0_20251002
["timestamp","ask_amount","ask_price","bid_price","bid_amount"]
[1759435195183,0.46496309,120940.0,120930.0,0.0956446]
[1759435195389,0.0826346,120930.0,120920.0,0.01301]
[1759435195592,0.77893741,120930.0,120910.0,0.0956534]
[1759435195789,0.77893741,120930.0,120910.0,0.1177934]
[1759435195790,0.39660632,120920.0,120910.0,0.1177934]
[1759435195991,0.84004092,120930.0,120920.0,0.1184914]
[1759435196186,0.46497131,120930.0,120920.0,0.1184914]
[1759435196392,0.86157763,120930.0,120920.0,0.1184914]
[1759435196588,0.86157763,120930.0,120910.0,0.0956529]
[1759435196589,0.0826415,120920.0,120910.0,0.0956529]
[1759435196779,1.59600782,120920.0,120910.0,0.0956529]
[1759435196984,1.59600782,120920.0,120910.0,0.01301]
[1759435197482,1.59600782,120920.0,120900.0,0.0956605]
[1759435197681,0.75740632,120910.0,120900.0,0.0956605]
[1759435197884,0.0826551,120900.0,120890.0,0.01371]
[1759435198091,1.59626142,120900.0,120890.0,0.0963716]
[1759435198286,1.51360632,120900.0,120890.0,0.0963716]
[1759435198486,1.59626142,120900.0,120890.0,0.1185116]
[1759435198989,1.59626142,120900.0,120890.0,0.0963716]
[1759435199294,1.51360632,120900.0,120890.0,0.1185116]
[1759435199686,1.51360632,120900.0,120890.0,0.0963716]
[1759435200184,0.75740632,120900.0,120890.0,0.0963716]
[1759435200386,0.75740632,120900.0,120890.0,0.096372]
[1759435200788,0.75740632,120900.0,120880.0,0.0963754]
[1759435200986,0.75740632,120890.0,120880.0,0.0963754]
[1759435201292,0.75740632,120890.0,120880.0,0.1185154]
[1759435201494,0.3608,120890.0,120880.0,0.1185154]
[1759435201692,0.75740632,120890.0,120880.0,0.1185154]
[1759435202291,0.3608,120890.0,120880.0,0.1185154]
[1759435202492,0.75740632,120890.0,120880.0,0.1185154]
[1759435203389,0.39660632,120890.0,120880.0,0.4793154]
[1759435203589,1.1992135,120910.0,120900.0,0.01371]
[1759435203790,0.0826551,120900.0,120890.0,0.096372]
[1759435203990,0.84006142,120900.0,120890.0,0.096372]
[1759435204690,0.84006142,120900.0,120890.0,0.118512]
[1759435204885,0.84005902,120910.0,120900.0,0.0826551]
[1759435205195,1.51312632,120910.0,120900.0,0.0963651]
[1759435205388,0.75740632,120910.0,120900.0,0.1185051]
[1759435205589,1.59577462,120910.0,120900.0,0.1185051]
[1759435205788,1.23497462,120910.0,120900.0,0.1185051]
[1759435205993,1.59617462,120910.0,120900.0,0.1185051]
[1759435206389,1.59617462,120910.0,120900.0,0.03585]
[1759435206689,2.37873701,120910.0,120870.0,0.01371]
[1759435206894,0.75740632,120880.0,120870.0,0.0963856]
[1759435207090,1.51388632,120880.0,120870.0,0.0963856]
[1759435207491,0.75740632,120880.0,120870.0,0.1185256]
[1759435207696,0.4434666,120890.0,120880.0,0.0826688]
[1759435207995,1.59663292,120890.0,120880.0,0.1185188]
[1759435208989,1.59663292,120890.0,120870.0,0.01371]
[1759435209194,1.15401264,120880.0,120860.0,0.08806867]
[1759435209494,1.59712202,120870.0,120860.0,0.0963903]
[1759435209789,1.58368094,120870.0,120860.0,0.1185303]
[1759435209995,0.75740632,120870.0,120860.0,0.1185303]
[1759435210190,0.4434727,120880.0,120860.0,0.91513662]
[1759435210492,0.84007902,120880.0,120870.0,0.1185256]
[1759435211191,0.84007282,120890.0,120880.0,0.0963788]
[1759435211496,1.61926493,120890.0,120880.0,0.1185188]
[1759435211697,1.2009065,120890.0,120880.0,0.1185188]
[1759435211995,0.3608,120890.0,120880.0,0.91512512]
[1759435212192,0.3608,120890.0,120880.0,0.5185188]
[1759435212495,0.84006502,120900.0,120890.0,0.118512]
[1759435212696,0.77961732,120920.0,120910.0,0.01371]
[1759435212887,1.55889047,120920.0,120910.0,0.0963583]
[1759435213192,0.46519465,120920.0,120910.0,0.1184983]
[1759435213389,1.61932097,120920.0,120910.0,0.1184983]
[1759435213996,1.61932097,120920.0,120910.0,0.0963583]
[1759435214388,1.22271465,120920.0,120910.0,0.1184983]
[1759435214888,1.61932097,120920.0,120910.0,0.0963583]
[1759435215196,0.0826483,120910.0,120900.0,0.01371]
[1759435215390,0.0826551,120900.0,120890.0,0.01371]
[1759435215696,0.75740632,120900.0,120890.0,0.1185074]
[1759435216196,0.3608,120900.0,120890.0,0.1185074]
[1759435216689,0.84006142,120900.0,120890.0,0.0963674]
[1759435217695,1.59730142,120900.0,120890.0,0.01371]
[1759435217896,0.082662,120890.0,120880.0,0.0963741]
[1759435218093,0.84006832,120890.0,120880.0,0.0963741]
[1759435218896,0.84006832,120890.0,120880.0,0.1185141]
[1759435219090,0.443462,120890.0,120880.0,0.1185141]
[1759435219290,0.84006832,120890.0,120880.0,0.1185141]
[1759435219890,0.84006832,120890.0,120880.0,0.01371]
[1759435220096,0.0826688,120880.0,120870.0,0.17074137]
[1759435220294,0.84007512,120880.0,120870.0,0.0963827]
[1759435220495,0.84007512,120880.0,120870.0,0.19288137]
[1759435220995,0.84007512,120880.0,120870.0,0.1185227]
[1759435222198,0.84007512,120880.0,120870.0,0.0963856]
[1759435222698,0.4434688,120880.0,120870.0,0.1185256]
[1759435223098,1.2007888,120880.0,120870.0,0.1185256]
[1759435223295,0.3608,120880.0,120870.0,0.1185256]
[1759435223499,0.84006992,120890.0,120880.0,0.1185188]
[1759435223500,1.2007036,120890.0,120880.0,0.1185188]
[1759435223800,0.4434636,120890.0,120880.0,0.1185188]
[1759435223994,1.59734992,120890.0,120880.0,0.1185188]
[1759435224794,0.3608,120900.0,120890.0,0.082662]
[1759435225003,0.3608,120900.0,120890.0,0.119042]
[1759435225197,1.59862142,120900.0,120890.0,0.01308]
[1759435225395,0.082662,120890.0,120880.0,0.0963761]
[1759435225600,0.84006832,120890.0,120880.0,0.0963761]
[1759435226399,0.84006832,120890.0,120880.0,0.01371]
[1759435226598,0.84006832,120890.0,120880.0,0.0963788]
[1759435228199,1.24006832,120890.0,120870.0,0.01371]
[1759435228400,0.443462,120890.0,120880.0,0.0826688]
[1759435229500,0.3608,120890.0,120880.0,0.1181788]
[1759435229705,0.84006552,120900.0,120890.0,0.03551]
[1759435229906,1.59862552,120900.0,120890.0,0.01283]
[1759435230202,1.59886552,120900.0,120890.0,0.095492]
[1759435230403,0.84006552,120900.0,120890.0,0.118172]
[1759435230599,1.59886552,120900.0,120890.0,0.118172]
[1759435231202,0.84006552,120900.0,120890.0,0.118172]
[1759435231401,1.59886552,120900.0,120890.0,0.118172]
[1759435231600,1.59870552,120900.0,120890.0,0.118172]
[1759435232508,0.84006552,120900.0,120890.0,0.118172]
[1759435232807,1.59886552,120900.0,120890.0,0.118172]
[1759435234208,1.59886552,120900.0,120890.0,0.095492]
[1759435234502,0.082662,120890.0,120880.0,0.01283]
[1759435234706,0.84006832,120890.0,120870.0,0.17074247]
[1759435234907,1.51644632,120880.0,120870.0,0.0963838]
[1759435239111,1.59911512,120880.0,120870.0,0.0963856]
[1759435239504,0.0826756,120870.0,120860.0,0.01371]
[1759435239708,0.82664086,120870.0,120860.0,0.01371]
[1759435240610,0.82664086,120870.0,120850.0,0.01292022]
[1759435240611,1.22664086,120870.0,120850.0,0.01292022]
[1759435240807,1.51620632,120860.0,120850.0,0.01292022]
[1759435241308,1.51620632,120860.0,120850.0,9.022e-05]
[1759435242006,0.75740632,120860.0,120850.0,9.022e-05]
[1759435242200,1.51616632,120860.0,120850.0,0.03560022]
[1759435242506,1.51612632,120860.0,120850.0,0.03560022]
[1759435242710,1.51612632,120860.0,120850.0,0.01292022]
[1759435243010,1.91612632,120860.0,120850.0,9.022e-05]
[1759435244610,1.91612632,120860.0,120850.0,2.2e-07]
[1759435244810,1.91600632,120860.0,120850.0,2.2e-07]
[1759435245515,1.91606782,120860.0,120850.0,2.2e-07]
[1759435245711,1.15746782,120860.0,120850.0,2.2e-07]
[1759435245907,1.91598782,120860.0,120850.0,2.2e-07]
[1759435246307,1.15746782,120860.0,120850.0,2.2e-07]
[1759435246613,1.91590782,120860.0,120850.0,2.2e-07]
[1759435247913,1.15746782,120860.0,120850.0,2.2e-07]
[1759435248116,1.91594782,120860.0,120850.0,2.2e-07]
[1759435248314,1.86431804,120860.0,120850.0,2.2e-07]
[1759435248915,1.88602373,120860.0,120850.0,2.2e-07]
[1759435249308,1.86431804,120860.0,120850.0,2.2e-07]
[1759435249715,1.10599804,120860.0,120850.0,2.2e-07]
[1759435250222,1.86419804,120860.0,120850.0,2.2e-07]
[1759435250808,1.10599804,120860.0,120850.0,2.2e-07]
[1759435251004,1.86411804,120860.0,120850.0,2.2e-07]
[1759435251212,1.88582021,120860.0,120850.0,2.2e-07]
[1759435251411,3.56382021,120860.0,120850.0,2.2e-07]
[1759435252510,0.0827013,120840.0,120810.0,0.01283]
[1759435252710,0.78864644,120820.0,120800.0,0.1182291]
[1759435252905,0.78864644,120820.0,120800.0,0.03551]
[1759435252906,1.46421654,120810.0,120800.0,0.03551]
[1759435253511,0.70602676,120810.0,120800.0,0.1182335]
[1759435253719,1.46434676,120810.0,120800.0,0.1182335]
[1759435255421,1.46434676,120810.0,120800.0,0.01283]
[1759435256020,1.46434676,120810.0,120800.0,0.0955535]
[1759435256922,1.47261614,120810.0,120800.0,0.0955535]
[1759435257222,1.47261614,120810.0,120790.0,0.0955557]
[1759435257423,1.10321654,120800.0,120790.0,0.0955557]
[1759435257623,1.46401654,120800.0,120790.0,0.0955557]
[1759435257826,1.46401654,120800.0,120790.0,0.1171157]
[1759435258024,0.70593654,120800.0,120790.0,0.5171157]
[1759435258227,1.11888,120800.0,120790.0,0.5171157]
[1759435258821,1.11892,120800.0,120790.0,0.5171157]
[1759435259327,0.70593654,120800.0,120790.0,0.5171157]
[1759435259728,1.46397654,120800.0,120790.0,0.5171157]
[1759435260124,1.46397654,120800.0,120790.0,0.01283]
[1759435260329,1.54670004,120800.0,120790.0,0.0955604]
[1759435260731,1.54666004,120800.0,120790.0,0.0955604]
[1759435261030,0.0827304,120790.0,120780.0,0.0955624]
[1759435261222,0.78866694,120790.0,120780.0,0.0955624]
[1759435261627,0.0827372,120780.0,120770.0,0.0955699]
[1759435261824,1.54675374,120780.0,120770.0,0.0955699]
[1759435262225,1.54675374,120780.0,120770.0,0.1171299]
[1759435262428,1.2016172,120780.0,120770.0,0.1171299]
[1759435262733,1.54675374,120780.0,120770.0,0.1171299]
[1759435262925,1.54675374,120780.0,120770.0,0.4955741]
[1759435263528,1.54683049,120780.0,120770.0,0.01283]
[1759435263729,1.54683049,120780.0,120760.0,0.01293]
[1759435264030,0.70593654,120770.0,120750.0,0.09578919]
[1759435264234,1.46397654,120760.0,120750.0,0.09578919]
[1759435264428,1.45052354,120760.0,120750.0,0.09578919]
[1759435264935,0.69248354,120760.0,120750.0,0.09578919]
[1759435265134,1.45068354,120760.0,120750.0,0.09578919]
[1759435265634,1.45060354,120760.0,120750.0,0.09578919]
[1759435266531,0.69248354,120760.0,120750.0,0.09578919]
[1759435266732,1.45052354,120760.0,120750.0,0.09578919]
[1759435267440,1.45048354,120760.0,120750.0,0.11734919]
[1759435268233,0.69248354,120760.0,120750.0,0.11734919]
[1759435268427,1.45048354,120760.0,120750.0,0.11734919]
[1759435268631,1.45040354,120760.0,120750.0,0.11734919]
[1759435269236,0.4435443,120770.0,120760.0,0.1172409]
[1759435269441,1.2017843,120770.0,120760.0,0.1172409]
[1759435269940,1.2018243,120770.0,120760.0,0.1172409]
[1759435270140,1.2017843,120770.0,120760.0,0.1172409]
[1759435270639,0.4435443,120770.0,120760.0,0.1172409]
[1759435270835,0.3608,120770.0,120760.0,0.5172409]
[1759435271134,1.11896,120770.0,120760.0,0.5172409]
[1759435272140,1.46409654,120770.0,120760.0,0.1172409]
[1759435272342,1.46409654,120770.0,120760.0,0.0956809]
[1759435272537,1.46409654,120770.0,120760.0,0.1172409]
[1759435272741,0.75816,120770.0,120760.0,0.1172409]
[1759435273038,1.88041895,120780.0,120770.0,0.0956741]
[1759435273340,2.98367549,120780.0,120770.0,0.1172341]
[1759435273540,2.98367549,120780.0,120770.0,0.0956741]
[1759435274043,2.98367549,120780.0,120770.0,0.1172341]
[1759435274234,2.22555549,120780.0,120770.0,0.1172341]
[1759435274541,2.98403549,120780.0,120770.0,0.1172341]
[1759435274740,2.22555549,120780.0,120770.0,0.1172341]
[1759435275038,2.98407549,120780.0,120770.0,0.1172341]
[1759435275839,0.36087675,120780.0,120770.0,0.5172341]
[1759435276140,1.11923675,120780.0,120770.0,0.5172341]
[1759435276340,0.75855675,120780.0,120770.0,0.5172341]
[1759435276741,7.675e-05,120780.0,120770.0,1.22317064]
[1759435277938,7.675e-05,120780.0,120770.0,0.8780341]
[1759435278134,7.675e-05,120780.0,120770.0,0.5172341]
[1759435278641,7.675e-05,120780.0,120770.0,0.1172341]
[1759435278945,0.70601329,120780.0,120770.0,0.1172341]
[1759435279338,0.70601329,120780.0,120770.0,0.0956741]
[1759435279644,0.78875049,120780.0,120770.0,0.0956741]
[1759435280444,0.78875049,120780.0,120760.0,0.0956761]
[1759435280645,1.10361654,120770.0,120760.0,0.0956761]
[1759435281038,1.54716064,120770.0,120760.0,0.0956761]
[1759435281248,1.54716064,120770.0,120760.0,0.01293]
[1759435281543,0.0827509,120760.0,120750.0,0.00010239]
[1759435281734,0.78868744,120760.0,120750.0,0.00010239]
[1759435282241,0.78868744,120760.0,120750.0,0.01303239]
[1759435282448,0.78868744,120760.0,120750.0,0.09579019]
[1759435283042,1.2020309,120760.0,120750.0,0.11735019]
[1759435283241,0.75848,120760.0,120750.0,0.11735019]
[1759435283540,0.3608,120770.0,120760.0,0.1172409]
[1759435283739,1.2024259,120770.0,120760.0,0.1172409]
[1759435283936,1.54756244,120770.0,120760.0,0.03449]
[1759435284151,1.2024259,120770.0,120760.0,0.1172409]
[1759435284647,0.8416259,120770.0,120760.0,0.1172409]
[1759435284847,1.2024259,120770.0,120760.0,0.1172409]
[1759435285052,0.8416259,120770.0,120760.0,0.1172409]
[1759435286142,0.70601329,120780.0,120770.0,0.1175741]
[1759435286341,1.11979675,120780.0,120770.0,0.1175741]
[1759435286550,1.46493329,120780.0,120770.0,0.1175741]
[1759435287247,1.48665844,120780.0,120770.0,0.1175741]
[1759435287647,1.48665844,120780.0,120770.0,0.0963041]
[1759435287847,0.72773844,120780.0,120770.0,0.0963041]
[1759435288151,1.48649844,120780.0,120770.0,0.1175741]
[1759435289150,1.56923564,120780.0,120770.0,0.1175741]
[1759435290354,1.56923564,120780.0,120770.0,0.0963041]
[1759435294954,1.56923564,120780.0,120770.0,0.0827441]
[1759435297849,1.56923564,120780.0,120770.0,0.0963041]
[1759435298050,1.2240991,120780.0,120770.0,0.0963041]
[1759435298254,1.56923564,120780.0,120770.0,0.0963041]
[1759435300558,1.56923564,120780.0,120770.0,0.0827441]
[1759435301560,1.56923564,120780.0,120770.0,0.0963041]
[1759435303552,0.0827441,120770.0,120760.0,0.1169449]
[1759435303754,0.42788064,120770.0,120760.0,0.0956749]
[1759435303957,0.78868064,120770.0,120760.0,0.0956749]
[1759435304155,0.78868064,120770.0,120760.0,0.1169449]
[1759435304662,1.54572064,120770.0,120760.0,0.1169449]
[1759435306658,1.54556064,120770.0,120760.0,0.1169449]
[1759435306852,1.2004241,120770.0,120760.0,0.1169449]
[1759435307053,1.54556064,120770.0,120760.0,0.1169449]
[1759435307250,1.54556064,120770.0,120760.0,0.0827449]
[1759435308459,1.59800648,120770.0,120760.0,0.0827449]
[1759435309152,0.84112648,120770.0,120760.0,0.1175749]
[1759435309358,1.59776648,120770.0,120760.0,0.1175749]
[1759435310061,1.59776648,120770.0,120760.0,0.0963049]
[1759435311161,1.59776648,120770.0,120760.0,0.1175749]
[1759435311565,1.58431336,120770.0,120760.0,0.1175749]
[1759435313166,0.82767336,120770.0,120760.0,0.1175749]
[1759435313362,1.58391336,120770.0,120760.0,0.1175749]
[1759435314365,1.82241618,120770.0,120760.0,0.1175749]
[1759435314571,1.06617618,120770.0,120760.0,0.1175749]
[1759435314765,1.82233618,120770.0,120760.0,0.1175749]
[1759435315368,1.06617618,120770.0,120760.0,0.1175749]
[1759435315574,1.82221618,120770.0,120760.0,0.1175749]
[1759435315764,1.06617618,120770.0,120760.0,0.1175749]
[1759435315966,1.82221618,120770.0,120760.0,0.0963049]
[1759435320672,1.46101618,120770.0,120760.0,0.1184649]
[1759435321064,0.3180426,120770.0,120760.0,0.7973075]
[1759435321263,0.01954631,120780.0,120770.0,0.1188041]
[1759435321468,1.09334891,120780.0,120770.0,0.7976467]
[1759435321668,0.33758891,120780.0,120770.0,0.7976467]
[1759435321868,1.09334891,120780.0,120770.0,0.4368467]
[1759435322071,1.45414891,120780.0,120770.0,0.4368467]
[1759435322366,0.69838891,120780.0,120770.0,0.4368467]
[1759435322568,0.33758891,120780.0,120770.0,0.4368467]
[1759435322775,0.33758891,120780.0,120770.0,0.7976467]
[1759435322776,0.32413781,120780.0,120770.0,0.7976467]
[1759435323070,0.39112083,120810.0,120790.0,0.03606]
[1759435323270,0.39079459,120810.0,120800.0,0.03606]
[1759435323470,0.4653193,120810.0,120800.0,0.1187835]
[1759435323667,1.2210393,120810.0,120800.0,0.1187835]
[1759435323868,0.3825983,120810.0,120800.0,0.1187835]
[1759435324070,0.7775583,120810.0,120800.0,0.1187835]
[1759435324264,0.7775583,120810.0,120800.0,0.4795835]
[1759435324469,0.3398409,120810.0,120800.0,0.80593699]
[1759435324665,0.0217983,120810.0,120800.0,1.52397959]
[1759435324973,0.3180426,120810.0,120800.0,1.27324082]
[1759435325175,0.3180426,120810.0,120800.0,0.95519822]
[1759435325368,0.3180426,120810.0,120800.0,1.27324082]
[1759435328470,0.3180426,120810.0,120800.0,0.95519822]
[1759435328671,0.3180426,120810.0,120800.0,1.27324082]
[1759435329078,1.0619226,120820.0,120810.0,0.1187767]
[1759435329266,1.3799652,120820.0,120810.0,0.1187767]
[1759435330177,0.74388,120820.0,120810.0,0.1187767]
[1759435330378,1.3799652,120820.0,120810.0,0.1187767]
[1759435330777,1.40172067,120820.0,120810.0,0.1187767]
[1759435331266,0.6788426,120830.0,120820.0,0.1187698]
[1759435331465,1.45619529,120830.0,120820.0,0.1187698]
[1759435331875,1.13815269,120830.0,120820.0,0.1187698]
[1759435332079,1.45619529,120830.0,120820.0,0.1187698]
[1759435332282,1.45619529,120830.0,120820.0,0.4368124]
[1759435332674,1.45619529,120830.0,120820.0,0.1187698]
[1759435333381,1.85694089,120830.0,120820.0,0.0966098]
[1759435333877,1.85694089,120830.0,120820.0,0.1187698]
[1759435334078,1.85694089,120830.0,120820.0,0.0966098]
[1759435334678,1.77423789,120830.0,120820.0,0.1187698]
[1759435335386,1.7524852,120830.0,120820.0,0.1187698]
[1759435335774,1.77423418,120830.0,120820.0,0.1187698]
[1759435336384,1.7524852,120830.0,120820.0,0.1187698]
[1759435336976,1.85694067,120830.0,120820.0,0.1187698]
[1759435337881,1.85694067,120830.0,120820.0,0.0966098]
[1759435339882,2.57498327,120830.0,120810.0,0.0966145]
[1759435340082,1.3149278,120820.0,120810.0,0.0966145]
[1759435340381,0.9968852,120820.0,120810.0,0.0966145]
[1759435343187,1.01866561,120820.0,120810.0,0.0966145]
[1759435343383,1.079595,120820.0,120810.0,0.1187745]
[1759435343573,1.834195,120820.0,120810.0,0.1187745]
[1759435344784,1.1981098,120820.0,120810.0,0.1187745]
[1759435345183,1.834195,120820.0,120810.0,0.1187745]
[1759435345686,0.6360852,120820.0,120810.0,0.1187745]
[1759435345989,1.3906852,120820.0,120810.0,0.1187745]
[1759435346180,0.6360852,120820.0,120810.0,0.1187745]
[1759435346386,1.3904452,120820.0,120810.0,0.1187745]
[1759435348779,1.4731551,120820.0,120810.0,0.1187745]
[1759435349284,1.8339551,120820.0,120810.0,0.1187745]
[1759435349481,1.3904452,120820.0,120810.0,0.1187745]
[1759435349683,0.7615487,120830.0,120820.0,0.1178599]
[1759435349889,1.5158687,120830.0,120820.0,0.1178599]
[1759435350284,1.5158687,120830.0,120820.0,0.03515]
[1759435350487,2.2339113,120830.0,120810.0,0.0966115]
[1759435350686,0.9968852,120820.0,120810.0,0.0827115]
[1759435350886,1.3149278,120820.0,120810.0,0.0827115]
[1759435351088,0.9968852,120820.0,120810.0,0.0827115]
[1759435352094,1.7516452,120820.0,120810.0,0.1178615]
[1759435353494,1.4735551,120820.0,120810.0,0.1178615]
[1759435354295,1.8343551,120820.0,120810.0,0.1178615]
[1759435354494,1.4735551,120820.0,120810.0,0.1178615]
[1759435354695,1.8343551,120820.0,120810.0,0.1178615]
[1759435354895,1.8343551,120820.0,120810.0,0.0959515]
[1759435355589,1.4735551,120820.0,120810.0,0.0959515]
[1759435355892,1.8343551,120820.0,120810.0,0.1178615]
[1759435356796,1.8343551,120820.0,120810.0,0.0959515]
[1759435357394,2.1523977,120820.0,120810.0,0.0827115]
[1759435357694,2.5523977,120820.0,120810.0,0.0827115]
[1759435357888,2.2343551,120820.0,120810.0,0.0827115]
[1759435358696,1.5982699,120820.0,120810.0,0.0827115]
[1759435358897,2.5523977,120820.0,120810.0,0.0827115]
[1759435359097,1.5982699,120820.0,120810.0,0.0827115]
[1759435359298,2.2343551,120820.0,120810.0,0.0827115]
[1759435361193,2.5523977,120820.0,120810.0,0.0827115]
[1759435362386,2.1523977,120820.0,120810.0,0.0827115]
[1759435362692,1.3976377,120820.0,120810.0,0.0827115]
[1759435362997,1.8339551,120820.0,120810.0,0.0827115]
[1759435363388,0.4435099,120820.0,120810.0,0.1178615]
[1759435363600,1.0795951,120820.0,120810.0,0.1178615]
[1759435363895,1.8339551,120820.0,120810.0,0.1178615]
[1759435364095,1.8339551,120820.0,120810.0,0.0959515]
[1759435364293,1.8339551,120820.0,120810.0,0.1178615]
[1759435366296,1.0795951,120820.0,120810.0,0.1178615]
[1759435366502,1.8339551,120820.0,120810.0,0.1178615]
[1759435366998,0.9968852,120820.0,120810.0,0.1178615]
[1759435367187,1.1551124,120820.0,120810.0,0.1178615]
[1759435367497,1.473155,120820.0,120810.0,0.1178615]
[1759435369701,1.3904452,120820.0,120810.0,0.4359041]
[1759435369902,1.3904452,120820.0,120810.0,0.1178615]
[1759435370098,1.833955,120820.0,120810.0,0.1178615]
[1759435370303,1.51562327,120820.0,120810.0,0.1178615]
[1759435371395,1.51562327,120820.0,120810.0,0.0959515]
[1759435372193,1.83337674,120820.0,120810.0,0.0827115]
[1759435372500,1.51562327,120820.0,120810.0,0.0827115]
[1759435373390,0.76126327,120820.0,120810.0,0.1178615]
[1759435373798,1.51558327,120820.0,120810.0,0.1178615]
[1759435374798,0.4435098,120820.0,120810.0,0.1178615]
[1759435374999,1.51558327,120820.0,120810.0,0.1178615]
[1759435375903,0.76126327,120820.0,120810.0,0.1178615]
[1759435376103,1.51558327,120820.0,120810.0,0.1178615]
[1759435378810,0.0827167,120810.0,120800.0,0.0966207]
[1759435379108,1.07902364,120810.0,120800.0,0.0966207]
[1759435379505,1.07902364,120810.0,120800.0,0.1183407]
[1759435380204,0.67855347,120810.0,120800.0,0.1183407]
[1759435381513,0.99630694,120810.0,120800.0,0.1183407]
[1759435381709,0.31775347,120810.0,120800.0,0.1183407]
[1759435382612,1.11512,120820.0,120810.0,0.1181167]
[1759435382817,1.43287347,120820.0,120810.0,0.1181167]
[1759435383719,1.43287347,120820.0,120810.0,0.0963967]
[1759435384516,1.43287347,120820.0,120810.0,0.1181167]
[1759435386715,1.43287347,120820.0,120810.0,0.0963967]
[1759435387511,1.43287347,120820.0,120810.0,0.0827167]
[1759435390121,0.67855347,120820.0,120810.0,0.1181167]
[1759435390312,1.43283347,120820.0,120810.0,0.1181167]
[1759435392615,1.43279347,120820.0,120810.0,0.1181167]
[1759435392812,0.4435083,120830.0,120820.0,0.1181099]
[1759435393023,1.51550177,120830.0,120820.0,0.1181099]
[1759435393419,0.0827099,120820.0,120810.0,0.0963967]
[1759435393618,0.78310354,120820.0,120810.0,0.1181167]
[1759435394225,0.33959364,120820.0,120810.0,0.1181167]
[1759435394524,1.07199347,120820.0,120810.0,0.1181167]
[1759435394720,1.51550337,120820.0,120810.0,0.1181167]
[1759435395422,1.07199347,120820.0,120810.0,0.1181167]
[1759435398924,0.12675225,120850.0,120840.0,0.0963762]
[1759435398925,0.45194439,120850.0,120840.0,0.0963762]
[1759435399118,0.70038211,120850.0,120840.0,0.1180962]
[1759435400530,0.67855347,120860.0,120850.0,0.0826893]
[1759435400734,0.70036948,120860.0,120850.0,0.1180893]
[1759435401632,0.33956948,120860.0,120850.0,0.1180893]
[1759435402025,0.02181601,120860.0,120850.0,0.1180893]
[1759435402222,0.02181601,120860.0,120850.0,0.4788893]
[1759435402430,0.02181601,120860.0,120850.0,1.95084277]
[1759435402728,0.71760146,120880.0,120870.0,0.1180757]
[1759435402934,0.73937254,120880.0,120870.0,0.0963557]
[1759435403142,0.10510309,120880.0,120870.0,0.1180757]
[1759435403435,0.03856471,120880.0,120870.0,0.1180757]
[1759435404531,0.35631818,120880.0,120870.0,0.1180757]
[1759435405029,0.43898698,120880.0,120870.0,0.1180757]
[1759435405234,0.48203351,120880.0,120870.0,0.1180757]
[1759435405427,0.02177108,120880.0,120870.0,0.75358264]
[1759435405634,0.67855347,120900.0,120890.0,0.118372]
[1759435405635,0.41272371,120900.0,120890.0,0.118372]
[1759435405828,0.40480362,120900.0,120890.0,0.43612547]
[1759435406034,0.40480362,120900.0,120890.0,0.83612547]
[1759435406330,0.04400362,120900.0,120890.0,0.83612547]
[1759435406535,0.02174926,120900.0,120890.0,0.83612547]
[1759435407039,0.02174926,120900.0,120890.0,1.59060547]
[1759435407040,0.38254926,120900.0,120890.0,1.59060547]
[1759435407232,0.38254926,120900.0,120890.0,1.59056547]
[1759435407427,0.02174926,120900.0,120890.0,1.15387894]
[1759435407637,0.02174926,120900.0,120890.0,1.19692547]
[1759435407838,0.02174926,120900.0,120890.0,1.95128547]
[1759435408138,0.02174926,120900.0,120890.0,2.01669418]
[1759435408331,0.02174926,120900.0,120890.0,1.26233418]
[1759435408533,0.02174926,120900.0,120890.0,1.61669418]
[1759435408738,0.3608,120910.0,120900.0,0.1183652]
[1759435409234,0.3608,120910.0,120900.0,0.8726052]
[1759435409433,0.3608,120910.0,120900.0,0.1183652]
[1759435409628,0.67855347,120910.0,120900.0,0.1183652]
[1759435409830,0.0826552,120900.0,120890.0,0.01313]
[1759435410028,1.39630694,120900.0,120880.0,0.0957954]
[1759435410232,0.67855347,120890.0,120880.0,0.0957954]
[1759435410836,0.67855347,120890.0,120880.0,0.1183754]
[1759435411338,0.67855347,120890.0,120880.0,0.01313]
[1759435411539,0.67855347,120890.0,120870.0,0.0963516]
[1759435411540,1.09531309,120890.0,120870.0,0.0963516]
[1759435411842,0.67855347,120880.0,120870.0,0.1189357]
[1759435418133,0.3608,120880.0,120870.0,0.43668917]
[1759435420541,0.3608,120880.0,120870.0,0.8727757]
[1759435421742,0.3608,120880.0,120870.0,1.59052917]
[1759435421936,0.67855347,120890.0,120880.0,0.1183788]
[1759435423542,0.67855347,120890.0,120880.0,0.01313]
[1759435423738,0.0826688,120880.0,120870.0,0.0963508]
[1759435423943,0.0826688,120880.0,120870.0,0.8501908]
[1759435423944,0.76122227,120880.0,120870.0,0.8501908]
[1759435424131,0.76122227,120880.0,120870.0,0.8727708]
[1759435424331,0.76948394,120880.0,120870.0,0.8727708]
[1759435424642,0.76122227,120880.0,120870.0,0.8727708]
[1759435426441,0.40042227,120880.0,120870.0,0.1189308]
[1759435426640,0.3608,120890.0,120870.0,0.1189308]
[1759435426941,0.3608,120890.0,120880.0,0.43613227]
[1759435427136,0.67855347,120890.0,120880.0,0.1183788]
[1759435430248,0.69989164,120890.0,120880.0,0.43575077]
[1759435431254,0.69989164,120890.0,120880.0,0.1183788]
[1759435431848,0.69989164,120890.0,120880.0,0.43575077]
[1759435432242,0.69989164,120890.0,120880.0,0.1183788]
[1759435432945,0.69989164,120890.0,120880.0,0.43575077]
[1759435433646,0.69989164,120890.0,120880.0,0.1183788]
[1759435434741,0.69989164,120890.0,120880.0,0.0957988]
[1759435435850,0.69989164,120890.0,120880.0,0.1183788]
[1759435436350,0.69989164,120890.0,120880.0,0.43575077]
[1759435437239,0.69989164,120890.0,120880.0,0.1183788]
[1759435439051,0.78255364,120890.0,120880.0,0.1183788]
[1759435440349,1.09992561,120890.0,120880.0,0.1183788]
[1759435440553,0.0826688,120880.0,120870.0,0.0963529]
[1759435440755,1.09993241,120880.0,120870.0,0.0963529]
[1759435441054,1.09993241,120880.0,120870.0,0.1193629]
[1759435441852,1.87057234,120880.0,120870.0,0.0963529]
[1759435442055,1.87057234,120880.0,120870.0,0.1193629]
[1759435443352,0.4820684,120880.0,120870.0,0.43673487]
[1759435443656,0.7777207,120880.0,120870.0,0.43673487]
[1759435444152,0.3342519,120880.0,120870.0,0.43673487]
[1759435444356,0.01687993,120880.0,120870.0,1.19753487]
[1759435444659,0.3342519,120880.0,120870.0,1.19753487]
[1759435445358,0.3342519,120880.0,120870.0,1.2570552]
[1759435445556,0.01687993,120880.0,120870.0,1.2570552]
[1759435445756,0.3342519,120880.0,120870.0,1.2570552]
[1759435445956,0.3342519,120880.0,120870.0,2.0108152]
[1759435446457,0.01687993,120880.0,120870.0,2.0108152]
[1759435446759,0.3342519,120880.0,120870.0,2.0108152]
[1759435448363,0.01687993,120880.0,120870.0,2.0108152]
[1759435448563,0.01687993,120880.0,120870.0,2.26866684]
[1759435448760,0.01687993,120880.0,120870.0,2.0108152]
[1759435451865,0.01687993,120880.0,120870.0,1.95129487]
[1759435454960,0.01687993,120880.0,120870.0,2.02565354]
[1759435456064,0.3608,120910.0,120900.0,0.1192751]